bitfinex/quotes_BTCUSD_20220207
["timestamp","ask_amount","ask_price","bid_price","bid_amount"]
[1644200023391,0.0498928,42234.0,42233.0,0.042738]
[1644200023992,0.1298928,42234.0,42233.0,0.042738]
[1644200024193,0.08,42234.0,42233.0,0.0428452]
[1644200024638,7.792e-05,42235.0,42233.0,0.092738]
[1644200024839,7.792e-05,42235.0,42234.0,0.090238]
[1644200025239,7.792e-05,42235.0,42234.0,0.140238]
[1644200026040,0.03707792,42235.0,42234.0,0.143238]
[1644200026540,0.03707792,42235.0,42234.0,0.093238]
[1644200026740,0.13697072,42235.0,42234.0,0.003]
[1644200027139,0.08697072,42235.0,42234.0,0.003]
[1644200027541,0.13697072,42235.0,42234.0,0.003]
[1644200027742,0.09997072,42235.0,42230.0,0.059198]
[1644200028041,0.14997072,42235.0,42231.0,0.042742]
[1644200028398,0.09997072,42235.0,42231.0,0.101938]
[1644200028593,7.784e-05,42234.0,42231.0,0.101938]
[1644200028796,7.784e-05,42234.0,42232.0,0.0001072]
[1644200028992,7.784e-05,42234.0,42232.0,0.0428492]
[1644200029193,7.784e-05,42234.0,42232.0,0.042742]
[1644200029894,0.03607784,42234.0,42232.0,0.045742]
[1644200030092,0.03598524,42234.0,42232.0,0.045742]
[1644200030494,0.03598524,42234.0,42232.0,0.10493]
[1644200030694,0.03598524,42234.0,42232.0,0.1050372]
[1644200031304,0.00037676,42235.0,42232.0,0.2204182]
[1644200031495,0.00037676,42235.0,42233.0,0.05]
[1644200031796,0.00037676,42235.0,42234.0,0.042738]
[1644200032238,0.00037676,42237.0,42235.0,0.118378]
[1644200033040,0.00037676,42237.0,42235.0,0.37893552]
[1644200033241,0.0498928,42239.0,42235.0,0.42893552]
[1644200033441,0.00026654,42240.0,42235.0,0.42893552]
[1644200033442,0.05026654,42240.0,42236.0,0.343437]
[1644200033647,0.04526956,42238.0,42237.0,0.042731]
[1644200033845,0.00037676,42238.0,42237.0,0.090231]
[1644200034042,0.04526956,42238.0,42237.0,0.090231]
[1644200034543,0.04026654,42239.0,42237.0,0.149418]
[1644200034741,0.04,42239.0,42237.0,0.106687]
[1644200035142,0.04026654,42239.0,42237.0,0.106687]
[1644200035342,0.00026654,42239.0,42237.0,0.106687]
[1644200035544,0.0006433,42240.0,42237.0,0.106687]
[1644200035743,0.00026654,42239.0,42237.0,0.106687]
[1644200035990,0.0006433,42240.0,42237.0,0.106687]
[1644200036188,0.00037676,42240.0,42237.0,0.106687]
[1644200036392,0.0006433,42240.0,42237.0,0.106687]
[1644200036989,0.00026654,42240.0,42237.0,0.106687]
[1644200037190,0.0948928,42241.0,42237.0,0.106687]
[1644200037191,0.09526956,42241.0,42237.0,0.106687]
[1644200037389,0.00026654,42240.0,42237.0,0.106687]
[1644200037590,0.05037676,42241.0,42237.0,0.106687]
[1644200037793,0.0448928,42238.0,42237.0,0.106687]
[1644200037990,0.0448928,42238.0,42237.0,0.108687]
[1644200038793,0.04496708,42238.0,42237.0,0.108687]
[1644200039195,0.04496708,42238.0,42237.0,0.106687]
[1644200039639,0.04496708,42238.0,42237.0,0.149417]
[1644200041046,0.04496708,42238.0,42237.0,0.0475]
[1644200041941,0.08696708,42238.0,42237.0,0.0495]
[1644200043042,0.08196708,42238.0,42237.0,0.0495]
[1644200043243,0.08196708,42238.0,42237.0,0.0475]
[1644200043244,0.03996708,42238.0,42237.0,0.0475]
[1644200043895,7.428e-05,42238.0,42237.0,0.46593765]
[1644200044294,7.428e-05,42238.0,42237.0,1.15923765]
[1644200044691,7.428e-05,42238.0,42237.0,1.33584354]
[1644200045990,7.428e-05,42238.0,42237.0,1.34084354]
[1644200045991,0.06807428,42238.0,42237.0,1.34084354]
[1644200046390,7.428e-05,42238.0,42237.0,1.33584354]
[1644200047242,0.00026654,42239.0,42238.0,1.0]
[1644200047442,0.0003777,42240.0,42239.0,0.24933232]
[1644200047643,0.0003777,42240.0,42239.0,0.33955832]
[1644200047843,0.00026654,42243.0,42240.0,0.059175]
[1644200048141,0.00037655,42242.0,42241.0,0.1003272]
[1644200048342,0.00037655,42242.0,42241.0,0.1503272]
[1644200048543,0.00030075,42242.0,42241.0,0.1503272]
[1644200048944,0.00026654,42243.0,42241.0,0.1076072]
[1644200049144,0.00326654,42244.0,42242.0,0.161066]
[1644200049346,0.00026654,42243.0,42242.0,0.161066]
[1644200049544,0.00326654,42244.0,42242.0,0.208566]
[1644200049944,0.077,42243.0,42242.0,0.210566]
[1644200050745,0.077,42243.0,42242.0,0.310566]
[1644200050993,0.077,42243.0,42242.0,0.410566]
[1644200051194,0.077,42243.0,42242.0,0.308566]
[1644200051396,0.00326654,42244.0,42242.0,0.365848]
[1644200051595,0.00326654,42244.0,42243.0,0.042716]
[1644200051898,0.079,42244.0,42243.0,0.090216]
[1644200053199,0.003,42244.0,42243.0,0.090216]
[1644200053998,0.08,42244.0,42243.0,0.1023232]
[1644200054401,0.003,42244.0,42243.0,0.41536127]
[1644200054641,0.003,42244.0,42243.0,0.42103809]
[1644200054841,0.003,42244.0,42243.0,0.2003232]
[1644200055845,0.003,42244.0,42243.0,0.090216]
[1644200056145,0.018,42244.0,42243.0,0.094216]
[1644200056344,0.018,42244.0,42243.0,0.1043232]
[1644200057347,0.003,42244.0,42243.0,0.1003232]
[1644200057947,0.003,42244.0,42243.0,0.0971832]
[1644200058402,0.00307897,42244.0,42243.0,0.0971832]
[1644200059999,0.03107897,42244.0,42243.0,0.1011832]
[1644200060396,0.03107897,42244.0,42243.0,0.27778909]
[1644200060598,0.03107897,42244.0,42243.0,0.091076]
[1644200060797,0.03107897,42244.0,42243.0,0.26768189]
[1644200060998,0.03107897,42244.0,42243.0,0.091076]
[1644200061201,0.00307897,42244.0,42243.0,0.087076]
[1644200061397,0.00307897,42244.0,42243.0,0.0971832]
[1644200062746,0.00307897,42244.0,42243.0,0.27378909]
[1644200062946,0.00307897,42244.0,42243.0,0.0971832]
[1644200064051,0.02807897,42244.0,42243.0,0.41002325]
[1644200064447,0.02807897,42244.0,42243.0,0.68662914]
[1644200064649,0.02807897,42244.0,42243.0,0.67652194]
[1644200064848,0.02807897,42244.0,42243.0,0.68662914]
[1644200065247,0.02807897,42244.0,42243.0,0.68162914]
[1644200065447,0.00307897,42244.0,42243.0,0.68162914]
[1644200066091,0.005,42248.0,42244.0,0.95]
[1644200066293,0.001,42248.0,42247.0,0.6816799]
[1644200066492,0.00126713,42248.0,42247.0,1.18481408]
[1644200066692,0.001,42248.0,42247.0,1.56141997]
[1644200067092,0.001,42248.0,42247.0,1.83104811]
[1644200067296,0.001,42248.0,42247.0,1.89021096]
[1644200067693,0.001,42248.0,42247.0,1.88521096]
[1644200067893,0.001,42248.0,42247.0,2.38521096]
[1644200068095,0.069,42248.0,42247.0,2.38921096]
[1644200068895,0.069,42248.0,42247.0,2.03230978]
[1644200069297,0.001,42248.0,42247.0,2.02830978]
[1644200069740,0.001,42248.0,42247.0,1.96914693]
[1644200069944,0.071,42248.0,42247.0,1.97314693]
[1644200071142,0.001,42248.0,42247.0,1.96902784]
[1644200071943,0.07,42248.0,42247.0,1.69887423]
[1644200072445,0.07,42248.0,42247.0,1.42924609]
[1644200073243,0.001,42248.0,42247.0,1.52624609]
[1644200073491,0.001,42248.0,42247.0,1.62624609]
[1644200073992,0.072,42248.0,42247.0,1.62924609]
[1644200074594,0.1118928,42248.0,42247.0,0.77833889]
[1644200074793,0.40401769,42248.0,42247.0,0.503]
[1644200075191,0.45401769,42248.0,42247.0,0.003]
[1644200075391,0.45401769,42248.0,42244.0,0.5]
[1644200075392,0.38301769,42248.0,42244.0,0.5]
[1644200075594,0.0398928,42245.0,42244.0,0.5]
[1644200075790,0.3188484,42245.0,42244.0,0.539571]
[1644200076191,0.3188484,42245.0,42244.0,0.039571]
[1644200076390,0.3188484,42245.0,42243.0,0.118363]
[1644200076593,0.27174887,42244.0,42243.0,0.118363]
[1644200076994,0.27174887,42244.0,42243.0,0.157939]
[1644200077243,0.48274907,42244.0,42243.0,0.157939]
[1644200077444,0.27174887,42244.0,42243.0,0.157939]
[1644200077844,0.29122809,42244.0,42243.0,0.157939]
[1644200078046,0.57816533,42244.0,42243.0,0.118363]
[1644200078244,0.0588928,42244.0,42243.0,0.118363]
[1644200078444,0.0398928,42244.0,42243.0,0.15794]
[1644200080047,0.0588928,42244.0,42243.0,0.15794]
[1644200080746,0.019,42244.0,42243.0,0.15794]
[1644200081300,0.0398928,42246.0,42243.0,0.15794]
[1644200081301,0.00026713,42245.0,42243.0,0.15794]
[1644200081498,0.04015993,42246.0,42244.0,0.039575]
[1644200081798,0.00026713,42245.0,42244.0,0.039575]
[1644200081998,0.0578928,42246.0,42244.0,0.039575]
[1644200082998,0.0528928,42246.0,42244.0,0.039575]
[1644200083200,0.0348928,42245.0,42244.0,0.039575]
[1644200084002,0.045,42245.0,42244.0,0.039575]
[1644200085246,0.0348928,42246.0,42244.0,0.039575]
[1644200085846,0.05,42245.0,42244.0,0.039575]
[1644200086247,0.018,42246.0,42244.0,0.039575]
[1644200086648,0.01826713,42246.0,42244.0,0.039575]
[1644200086848,0.05,42245.0,42244.0,0.039575]
[1644200088052,0.041,42245.0,42244.0,0.039575]
[1644200088695,0.041,42245.0,42244.0,0.089575]
[1644200089294,0.00026713,42246.0,42244.0,0.089575]
[1644200089495,0.03515993,42247.0,42245.0,0.039573]
[1644200089695,0.00026713,42246.0,42244.0,0.168351]
[1644200089896,0.03515993,42247.0,42245.0,0.039572]
[1644200090097,0.00026713,42246.0,42245.0,0.039572]
[1644200090297,0.1248928,42247.0,42245.0,0.039572]
[1644200090298,0.07515993,42247.0,42245.0,0.039572]
[1644200090503,0.12015993,42247.0,42244.0,0.168351]
[1644200090898,0.12015993,42247.0,42245.0,0.039572]
[1644200091098,0.12015993,42247.0,42245.0,0.098747]
[1644200091398,0.08015993,42247.0,42245.0,0.098747]
[1644200092155,0.07515993,42247.0,42245.0,0.098747]
[1644200092655,0.04026713,42247.0,42245.0,0.098747]
[1644200093656,0.04026713,42247.0,42246.0,0.05]
[1644200093858,0.04,42247.0,42246.0,0.31619964]
[1644200094457,0.00164296,42248.0,42246.0,0.31619964]
[1644200094657,0.00126713,42248.0,42247.0,0.039568]
[1644200094857,0.001,42248.0,42247.0,0.039568]
[1644200095661,0.046,42248.0,42247.0,0.039568]
[1644200095900,0.001,42248.0,42246.0,0.31619964]
[1644200096096,0.00126713,42248.0,42246.0,0.31619964]
[1644200097496,0.00126713,42248.0,42247.0,0.07895696]
[1644200097698,0.001,42248.0,42247.0,0.11852496]
[1644200098501,0.001,42248.0,42247.0,0.18113216]
[1644200099297,0.001,42248.0,42247.0,0.087068]
[1644200099944,0.001,42248.0,42247.0,0.137068]
[1644200100144,0.0808928,42248.0,42247.0,0.087068]
[1644200100444,0.0808928,42248.0,42247.0,0.0475]
[1644200101149,0.0808928,42248.0,42247.0,0.087068]
[1644200101746,0.0808928,42248.0,42247.0,0.0475]
[1644200102146,0.0808928,42248.0,42247.0,0.087068]
[1644200102549,0.0808928,42248.0,42247.0,0.0475]
[1644200103048,0.001,42248.0,42247.0,0.0475]
[1644200103248,0.001,42248.0,42247.0,0.087068]
[1644200105300,0.001,42248.0,42247.0,0.137068]
[1644200105798,0.001,42248.0,42247.0,0.32660443]
[1644200106099,0.001,42248.0,42247.0,0.42660443]
[1644200108547,0.001,42248.0,42247.0,0.48576763]
[1644200109146,0.001,42248.0,42247.0,0.50603925]
[1644200109947,0.001,42248.0,42247.0,0.48397925]
[1644200110550,0.08,42248.0,42247.0,0.48397925]
[1644200111318,0.159,42248.0,42247.0,0.79211065]
[1644200111519,0.159,42248.0,42247.0,1.56289265]
[1644200111716,0.00226713,42249.0,42248.0,0.95]
[1644200111916,0.00308858,42255.0,42252.0,0.059158]
[1644200112120,0.2546107,42275.0,42268.0,0.07604738]
[1644200112121,0.1139,42271.0,42268.0,0.07604738]
[1644200112321,0.20388856,42274.0,42269.0,0.17921162]
[1644200112322,0.001,42274.0,42269.0,0.17921162]
[1644200112519,0.002,42278.0,42270.0,0.73018168]
[1644200112720,0.00081344,42280.0,42275.0,0.5933]
[1644200112919,0.00081344,42280.0,42276.0,0.38962411]
[1644200113117,0.00081344,42280.0,42279.0,0.5933]
[1644200113318,0.00081344,42280.0,42279.0,1.45678021]
[1644200113717,0.00081344,42280.0,42279.0,1.64621893]
[1644200113919,0.00026856,42283.0,42280.0,0.95]
[1644200114124,0.00044812,42284.0,42282.0,0.098601]
[1644200114319,0.26543311,42283.0,42282.0,0.648601]
[1644200114520,0.00044812,42284.0,42282.0,0.644101]
[1644200114753,0.00017956,42284.0,42283.0,0.04961785]
[1644200114950,0.00345312,42284.0,42283.0,0.05763585]
[1644200115152,0.00345312,42284.0,42283.0,0.01013585]
[1644200115153,0.00318456,42284.0,42283.0,0.01013585]
[1644200115350,0.00318456,42284.0,42283.0,0.06163585]
[1644200115550,0.21988555,42284.0,42283.0,0.06163585]
[1644200115751,0.00318456,42284.0,42283.0,0.06163585]
[1644200115950,0.00318456,42284.0,42283.0,0.10111785]
[1644200116449,0.00318456,42284.0,42283.0,0.09711785]
[1644200116653,0.00318456,42284.0,42283.0,0.05763585]
[1644200117051,0.08307736,42284.0,42283.0,0.05763585]
[1644200117249,0.08307736,42284.0,42283.0,0.06063585]
[1644200117851,0.08307736,42284.0,42283.0,0.01313585]
[1644200118049,0.08307736,42284.0,42283.0,0.01013585]
[1644200118700,0.08307736,42284.0,42283.0,3.585e-05]
[1644200118901,0.41315036,42284.0,42283.0,3.585e-05]
[1644200119099,0.41341892,42284.0,42283.0,3.585e-05]
[1644200119301,0.41341892,42284.0,42281.0,0.01013577]
[1644200119501,1.280073,42283.0,42280.0,0.05]
[1644200119697,1.280073,42283.0,42270.0,0.05]
[1644200119698,0.23396477,42271.0,42270.0,0.05]
[1644200119899,0.23396477,42271.0,42270.0,0.01888252]
[1644200119900,0.64393057,42271.0,42270.0,0.01888252]
[1644200120297,0.31385757,42271.0,42270.0,0.01888252]
[1644200120500,0.31385757,42271.0,42266.0,0.05]
[1644200120699,0.0348928,42267.0,42266.0,0.05]
[1644200120899,0.0348928,42267.0,42266.0,0.089518]
[1644200121099,0.0348928,42267.0,42266.0,1.44251707]
[1644200121302,0.0348928,42267.0,42266.0,1.44751707]
[1644200122169,0.0348928,42267.0,42266.0,1.00119907]
[1644200123365,0.0428928,42267.0,42266.0,1.02619907]
[1644200124166,0.0348928,42267.0,42266.0,1.00119907]
[1644200125469,0.0548928,42267.0,42266.0,1.00119907]
[1644200126708,0.0348928,42267.0,42266.0,1.00119907]
[1644200127409,0.0458928,42267.0,42266.0,1.01019907]
[1644200127609,0.0458928,42267.0,42256.0,0.05048588]
[1644200127610,0.95,42266.0,42256.0,0.05048588]
[1644200127814,0.0348928,42257.0,42256.0,0.00048588]
[1644200128010,0.87819448,42257.0,42256.0,0.00048588]
[1644200128210,0.330073,42255.0,42251.0,0.05]
[1644200128411,0.0348928,42252.0,42251.0,0.05]
[1644200129010,0.64951278,42253.0,42251.0,0.05]
[1644200129011,0.330073,42253.0,42251.0,0.05]
[1644200129211,0.01834533,42255.0,42251.0,0.05]
[1644200129410,0.008,42252.0,42251.0,0.083]
[1644200130455,0.008,42252.0,42251.0,0.109171]
[1644200130654,0.00026856,42256.0,42251.0,0.109171]
[1644200130858,0.22570375,42257.0,42252.0,0.0151072]
[1644200131055,0.00026856,42256.0,42252.0,0.0151072]
[1644200131255,0.008,42256.0,42252.0,0.0151072]
[1644200131455,0.00826856,42256.0,42252.0,0.0151072]
[1644200131656,0.008,42256.0,42251.0,0.147171]
[1644200132055,0.00026856,42257.0,42251.0,0.109171]
[1644200132254,0.04526856,42258.0,42251.0,0.10972512]
[1644200132458,0.045,42258.0,42251.0,0.10972512]
[1644200132654,0.04526856,42258.0,42251.0,0.10972512]
[1644200132857,0.04526856,42258.0,42252.0,0.0151072]
[1644200133055,0.04526856,42258.0,42255.0,0.12916272]
[1644200133256,0.00826856,42258.0,42255.0,0.12916272]
[1644200133497,0.008,42258.0,42255.0,0.12916272]
[1644200133797,0.008,42258.0,42257.0,0.0151072]
[1644200133996,0.00826856,42258.0,42257.0,0.1021512]
[1644200134195,0.008,42258.0,42257.0,0.1021512]
[1644200134397,0.008,42258.0,42257.0,0.48375955]
[1644200134596,0.00026856,42262.0,42257.0,0.74593707]
[1644200134794,0.00026856,42266.0,42261.0,0.0151072]
[1644200134997,0.00026856,42267.0,42264.0,0.0742532]
[1644200135196,0.25034671,42269.0,42265.0,0.0475]
[1644200135197,0.00026856,42266.0,42265.0,0.0475]
[1644200135495,0.01,42266.0,42265.0,0.0475]
[1644200136095,0.00026856,42267.0,42265.0,0.0475]
[1644200136296,0.045,42267.0,42265.0,0.0475]
[1644200136496,0.04526856,42267.0,42265.0,0.0475]
[1644200137370,0.05626856,42267.0,42265.0,0.0595]
[1644200138170,0.04526856,42267.0,42265.0,0.0475]
[1644200138570,0.00026856,42267.0,42265.0,0.0475]
[1644200138771,0.00373022,42268.0,42265.0,0.0475]
[1644200138971,0.00026856,42267.0,42265.0,0.0475]
[1644200139170,0.00327356,42268.0,42265.0,0.10665]
[1644200139371,0.00026856,42267.0,42265.0,0.0585]
[1644200139572,0.01427356,42268.0,42265.0,0.0585]
[1644200139772,0.00026856,42267.0,42265.0,0.0585]
[1644200139971,0.01427356,42268.0,42265.0,0.0585]
[1644200140173,0.01427356,42268.0,42265.0,0.0475]
[1644200140174,0.00026856,42267.0,42265.0,0.0475]
[1644200140370,0.00327356,42268.0,42265.0,0.0475]
[1644200140570,0.00026856,42267.0,42265.0,0.0475]
[1644200140772,0.00327356,42268.0,42265.0,0.0475]
[1644200141002,0.00026856,42267.0,42265.0,0.0475]
[1644200141202,0.00327356,42268.0,42265.0,0.0475]
[1644200141401,0.00026856,42267.0,42265.0,0.0585]
[1644200141600,0.01427356,42268.0,42265.0,0.0585]
[1644200141799,0.00026856,42267.0,42265.0,0.0585]
[1644200142001,0.01427356,42268.0,42265.0,0.0585]
[1644200142199,0.00026856,42267.0,42265.0,0.0475]
[1644200142402,0.00327356,42268.0,42267.0,0.00047]
[1644200142602,0.003005,42268.0,42267.0,0.04797]
[1644200143400,0.015005,42268.0,42267.0,0.05797]
[1644200144649,0.003005,42268.0,42267.0,0.04797]
[1644200145250,0.29378907,42269.0,42267.0,0.05597]
[1644200145553,0.015,42268.0,42267.0,0.05597]
[1644200146150,0.29378907,42269.0,42267.0,0.04797]
[1644200146350,0.29378907,42269.0,42267.0,0.059618]
[1644200146351,0.04526861,42269.0,42267.0,0.059618]
[1644200146751,0.045,42269.0,42267.0,0.059618]
[1644200146950,0.04526861,42269.0,42267.0,0.059618]
[1644200147352,0.06526861,42269.0,42267.0,0.063618]
[1644200147956,0.065,42269.0,42267.0,0.063618]
[1644200148158,0.04526861,42269.0,42267.0,0.059618]
[1644200148417,0.00026861,42269.0,42268.0,0.0626072]
[1644200148609,0.00045666,42270.0,42268.0,0.1021282]
[1644200149006,0.00026861,42275.0,42268.0,0.1021282]
[1644200149206,0.00026861,42276.0,42273.0,0.0151072]
[1644200149407,0.00209498,42277.0,42274.0,0.054133]
[1644200149606,0.00026861,42276.0,42274.0,0.054133]
[1644200150209,0.25354447,42278.0,42270.0,0.29845167]
[1644200150210,0.00329427,42272.0,42270.0,0.29845167]
[1644200150507,0.00329427,42272.0,42270.0,0.13931867]
[1644200150709,0.0348928,42271.0,42270.0,0.118266]
[1644200151307,0.25901644,42272.0,42270.0,0.124266]
[1644200151506,0.00356288,42272.0,42270.0,0.124266]
[1644200152155,0.00356288,42272.0,42270.0,0.118266]
[1644200152356,0.003922,42272.0,42271.0,0.039507]
[1644200152557,0.00365339,42272.0,42271.0,0.039507]
[1644200153359,0.00365339,42272.0,42271.0,0.043507]
[1644200154556,0.00365339,42272.0,42271.0,0.039507]
[1644200155358,0.00665839,42272.0,42271.0,0.046507]
[1644200156004,0.04155119,42272.0,42271.0,0.036507]
[1644200156204,0.04263021,42272.0,42271.0,0.029507]
[1644200157204,0.04263021,42272.0,42269.0,0.118278]
[1644200157405,0.05,42271.0,42267.0,0.05047]
[1644200157603,0.05026861,42271.0,42267.0,0.05047]
[1644200157803,0.0348928,42269.0,42267.0,0.05047]
[1644200158004,0.05,42269.0,42267.0,0.05047]
[1644200158403,0.0348928,42268.0,42267.0,0.05047]
[1644200158609,0.00026861,42270.0,42267.0,0.134131]
[1644200158806,0.00037718,42270.0,42269.0,0.0151072]
[1644200159006,0.00037718,42270.0,42269.0,0.0446242]
[1644200159305,0.00037718,42270.0,42269.0,0.0991242]
[1644200159747,0.00062773,42271.0,42269.0,0.0991242]
[1644200160348,0.00062773,42271.0,42269.0,0.0921242]
[1644200160949,0.00062773,42271.0,42269.0,0.0151072]
[1644200161348,0.00062773,42271.0,42269.0,0.0201072]
[1644200162350,0.00062773,42271.0,42269.0,0.0151072]
[1644200163497,0.00062773,42271.0,42269.0,0.0201072]
[1644200163903,0.20241357,42270.0,42269.0,0.0201072]
[1644200164296,0.20241357,42270.0,42269.0,0.0151072]
[1644200165296,0.00062773,42271.0,42269.0,0.0161072]
[1644200166300,0.19714316,42272.0,42268.0,0.0161852]
[1644200166898,0.19677114,42272.0,42268.0,0.0161852]
[1644200167149,0.0338148,42270.0,42268.0,0.0161852]
[1644200167349,0.0338148,42270.0,42268.0,0.0181852]
[1644200168152,0.0338148,42270.0,42268.0,0.0161852]
[1644200169254,0.00071824,42271.0,42268.0,0.0161852]
[1644200169454,0.0338148,42270.0,42268.0,0.0181852]
[1644200170057,0.0338148,42270.0,42268.0,0.002]
[1644200170260,0.0338148,42270.0,42259.0,0.18040215]
[1644200170261,0.05,42262.0,42259.0,0.18040215]
[1644200170458,0.14240999,42266.0,42255.0,0.05]
[1644200170459,0.25933128,42260.0,42255.0,0.05]
[1644200170656,0.25761734,42259.0,42255.0,0.05]
[1644200171100,0.0338148,42256.0,42255.0,0.05]
[1644200171309,0.0338148,42256.0,42255.0,0.093]
[1644200171902,0.09298547,42258.0,42255.0,0.093]
[1644200172204,0.0838148,42258.0,42255.0,0.05]
[1644200173401,0.1078148,42258.0,42255.0,0.05]
[1644200173602,0.0578148,42258.0,42255.0,0.05]
[1644200174647,0.05,42257.0,42255.0,0.05]
[1644200174848,0.0338148,42258.0,42255.0,0.05]
[1644200175449,0.0578148,42258.0,42255.0,0.05]
[1644200176051,0.05,42257.0,42255.0,0.05]
[1644200176253,0.1,42257.0,42255.0,0.05]
[1644200176452,0.05,42257.0,42255.0,0.05]
[1644200176654,0.1,42257.0,42255.0,0.05]
[1644200176852,0.28546572,42257.0,42255.0,0.05]
[1644200177052,0.23480927,42256.0,42255.0,0.05]
[1644200177453,0.26862407,42256.0,42255.0,0.002]
[1644200177655,0.64868507,42256.0,42250.0,1.0]
[1644200177869,0.64868507,42256.0,42250.0,0.08872497]
[1644200177870,0.0338148,42251.0,42250.0,0.08872497]
[1644200178056,0.05,42249.0,42243.0,0.05]
[1644200178255,0.3638758,42244.0,42243.0,0.05]
[1644200178506,0.72380303,42244.0,42243.0,0.05]
[1644200179403,0.75080303,42244.0,42243.0,0.05]
[1644200180206,0.72380303,42244.0,42243.0,0.05]
[1644200180406,0.77380303,42244.0,42241.0,0.00052794]
[1644200180706,0.330061,42242.0,42241.0,0.00052794]
[1644200180903,0.62218024,42242.0,42241.0,0.00052794]
[1644200181303,0.05,42240.0,42234.0,0.00024121]
[1644200181505,0.62218024,42242.0,42233.0,0.0661852]
[1644200181506,0.60477962,42239.0,42233.0,0.0661852]
[1644200181703,0.0338148,42234.0,42233.0,0.0661852]
[1644200182955,0.0338148,42237.0,42233.0,0.05]
[1644200183256,0.2744404,42242.0,42236.0,0.0161852]
[1644200183457,0.0338148,42247.0,42239.0,0.0161852]
[1644200183458,0.26216742,42246.0,42239.0,0.0161852]
[1644200183856,0.0338148,42250.0,42243.0,0.08927942]
[1644200184055,0.0338148,42250.0,42244.0,0.05]
[1644200184258,0.0338148,42245.0,42244.0,0.05]
[1644200184559,0.25803571,42252.0,42244.0,0.05]
[1644200184756,0.0338148,42255.0,42245.0,0.0753592]
[1644200184757,0.0338148,42254.0,42245.0,0.0753592]
[1644200184956,0.27536994,42255.0,42245.0,0.1228592]
[1644200185158,0.0338148,42255.0,42246.0,0.00052396]
[1644200185457,0.003,42254.0,42249.0,0.0161852]
[1644200185921,0.003,42254.0,42248.0,0.23724862]
[1644200186119,0.0338148,42249.0,42248.0,0.02143904]
[1644200186317,0.31030262,42256.0,42248.0,0.02143904]
[1644200186518,0.0338148,42249.0,42248.0,0.02143904]
[1644200186716,0.0338148,42249.0,42246.0,0.0161852]
[1644200187220,0.3100353,42250.0,42246.0,0.0161852]
[1644200187417,0.014,42249.0,42246.0,0.0251852]
[1644200188216,0.20656582,42253.0,42246.0,0.0161852]
[1644200188416,0.26669435,42252.0,42246.0,0.0161852]
[1644200188618,0.05,42253.0,42246.0,0.1345332]
[1644200188818,0.37604401,42255.0,42246.0,0.1345332]
[1644200189419,0.22999497,42254.0,42246.0,0.1435332]
[1644200189858,0.22999497,42254.0,42248.0,0.00052875]
[1644200190057,0.57936337,42253.0,42248.0,0.00052875]
[1644200190258,0.3638758,42249.0,42248.0,0.00052875]
[1644200190461,0.66126825,42249.0,42248.0,0.00052875]
[1644200190657,0.71126825,42249.0,42248.0,0.00052875]
[1644200190857,0.71126825,42249.0,42237.0,0.0161852]
[1644200191057,0.34739245,42249.0,42246.0,0.00052877]
[1644200191259,0.330061,42248.0,42246.0,0.00052877]
[1644200191458,0.28764418,42247.0,42246.0,0.00052877]
[1644200191856,0.33764418,42247.0,42246.0,0.00052877]
[1644200192058,0.05,42247.0,42242.0,0.27868635]
[1644200192360,0.28915716,42250.0,42244.0,0.00049925]
[1644200192557,0.33915716,42250.0,42244.0,0.00049925]
[1644200192757,0.28915716,42250.0,42244.0,0.00049925]
[1644200193159,0.0338148,42246.0,42244.0,0.00049925]
[1644200193407,0.0338148,42246.0,42244.0,0.002]
[1644200193603,0.0338148,42246.0,42245.0,0.00049924]
[1644200193604,0.3638758,42246.0,42245.0,0.00049924]
[1644200193804,0.63536653,42246.0,42245.0,0.00049924]
[1644200194003,0.8809177,42246.0,42245.0,0.00049924]
[1644200194202,0.9309177,42246.0,42245.0,0.00049924]
[1644200194702,0.9309177,42246.0,42237.0,0.1345552]
[1644200194703,0.6008567,42246.0,42243.0,0.00049926]
[1644200194906,0.330061,42245.0,42243.0,0.00049926]
[1644200195105,0.32149073,42246.0,42243.0,0.00049926]
[1644200195305,0.05,42246.0,42243.0,0.00049926]
[1644200195504,0.107,42245.0,42243.0,0.00049926]
[1644200195703,0.107,42245.0,42240.0,0.0161852]
[1644200195905,0.107,42245.0,42242.0,0.00048362]
[1644200196305,0.107,42245.0,42244.0,0.08339821]
[1644200196704,0.80253049,42254.0,42244.0,0.0161852]
[1644200196905,0.79478056,42254.0,42244.0,0.0161852]
[1644200197354,0.79478056,42254.0,42246.0,0.0161852]
[1644200197558,0.3638758,42253.0,42246.0,0.0161852]
[1644200197954,0.330061,42253.0,42246.0,0.0161852]
[1644200198155,0.58178559,42254.0,42244.0,0.008]
[1644200198356,0.330061,42251.0,42247.0,0.05965858]
[1644200198557,0.05,42253.0,42249.0,0.23784057]
[1644200198757,0.35051181,42254.0,42249.0,0.23784057]
[1644200199159,0.330061,42252.0,42249.0,0.23784057]
[1644200199360,0.0338148,42250.0,42247.0,0.059175]
[1644200199560,0.7035196,42250.0,42249.0,0.00448457]
[1644200199761,1.0170004,42250.0,42249.0,0.00448457]
[1644200200063,1.01690561,42250.0,42249.0,0.00448457]
[1644200200460,1.01690561,42250.0,42244.0,0.20953378]
[1644200200660,0.0338148,42246.0,42244.0,0.20953378]
[1644200200912,0.0338148,42246.0,42241.0,0.118359]
[1644200201105,0.65302981,42250.0,42240.0,0.0161852]
[1644200201305,0.0338148,42247.0,42240.0,0.0753732]
[1644200201505,0.31870057,42246.0,42241.0,0.003]
[1644200201708,0.0338148,42242.0,42241.0,0.003]
[1644200201904,0.0338148,42242.0,42241.0,0.00348464]
[1644200202405,0.0338148,42242.0,42241.0,0.00048464]
[1644200203006,0.0338148,42242.0,42238.0,0.05]
[1644200203503,0.1018148,42242.0,42238.0,0.05]
[1644200203704,0.1518148,42242.0,42238.0,0.05]
[1644200204405,0.0838148,42242.0,42238.0,0.05]
[1644200205265,0.0338148,42242.0,42238.0,0.05]
[1644200205562,0.1228148,42242.0,42238.0,0.05]
[1644200205762,0.1728148,42242.0,42238.0,0.05]
[1644200206162,0.139,42242.0,42238.0,0.05]
[1644200206364,0.58259958,42246.0,42238.0,0.05]
[1644200206566,0.63259958,42246.0,42238.0,0.05]
[1644200206764,0.63259958,42246.0,42238.0,0.05053614]